{"text_format":"3","workbook":"xlsx","n_sheets":2,"sheets":["USO DELLA CARTELLA DI LAVORO","REGISTRO VALUTAZIONI"],"not_rendered":{"defined_names":5},"read":"whole","date_system":"1900"}

{"sheet":"USO DELLA CARTELLA DI LAVORO","index":0,"n_rows":10,"n_cols":2,"rows_kept":10}
[null,"ISTRUZIONI"]
[null,"Il foglio di lavoro REGISTRO VALUTAZIONI è utile per calcolare i voti, dove per ogni attività è disponibile un determinato numero di punti. "]
[null,"Istruzioni: assicurarsi di salvare copie di backup dei voti."]
[null,"1. Immettere il nome dell'istituto di istruzione, le informazioni sulla classe, i nomi degli studenti e gli ID degli studenti (facoltativo).   "]
[null,"2. Adattare la tabella dei voti e GPA in base al sistema di valutazione solitamente utilizzato."]
[null,"3. Immettere i nomi delle attività o dei test a partire dalla cella G7, nonché la percentuale disponibile per ognuno (ad esempio \"Finale\" e \"50%\"). "]
[null,"4. Inserire i punteggi assegnati a ogni studente per ogni attività o test. Le colonne \"Punteggio\", \"Voto in lettere\" e \"GPA\" vengono calcolate automaticamente, ma possono essere ignorate se si preferisce. Il calcolo dei voti, la media e il voto finale sono incompleti finché non vengono immessi tutti i punteggi."]
[null,"Usare il comando \"Area di stampa\" nel menu Layout di pagina per modificare l'area inclusa nella stampa."]
[null,"Punteggio, voto in lettere e GPA non sono validi prima del completamento del 100% dei test e delle attività. "]
[null,"Immettere ogni attività o test e la relativa percentuale del voto totale nelle celle da G7 a W8."]

{"sheet":"REGISTRO VALUTAZIONI","index":1,"n_rows":20,"n_cols":23,"rows_kept":20,"merged":[[5,1,5,5],[6,1,6,3],[6,4,6,5],[7,1,8,3],[7,4,7,5],[8,4,8,5],[15,1,15,5],[16,1,16,2],[17,1,17,2],[18,1,18,2],[19,1,19,2]]}
[null,"NOME ISTITUTO"]
[]
[{"$nulls":6},"Punteggio",{"v":0,"d":"0%"},{"v":0.6,"d":"60%"},{"v":0.63,"d":"63%"},{"v":0.67,"d":"67%"},{"v":0.7,"d":"70%"},{"v":0.73,"d":"73%"},{"v":0.77,"d":"77%"},{"v":0.8,"d":"80%"},{"v":0.83,"d":"83%"},{"v":0.87,"d":"87%"},{"v":0.9,"d":"90%"},{"v":0.93,"d":"93%"},{"v":0.97,"d":"97%"}]
[{"$nulls":6},"Voto in lettere","F","D-","D","D+","C-","C","C+","B-","B","B+","A-","A","A+"]
[{"$nulls":6},"GPA",0,0.67,1,1.33,1.67,2,2.33,2.67,3,3.33,3.67,4,4]
[null,"Nome docente"]
[null,"Classe/progetto",null,null,"Nome attività o test"]
[null,"Anno/semestre/trimestre",null,null,"Percentuale (il totale deve essere 100%)"]
[{"$nulls":4},{"$f":"\"Percentuale totale: \"&SUM(G8:W8)*100&\"%\"","v":"Percentuale totale: 0%"}]
[null,"Nome studente","ID studente","Punteggio","Voto in lettere","GPA","Colonna6","Colonna7","Colonna8","Colonna9","Colonna10","Colonna11","Colonna12","Colonna13","Colonna14","Colonna15","Colonna16","Colonna17","Colonna18","Colonna19","Colonna20","Colonna21","Colonna22"]
[{"$nulls":3},{"$f":"(IF(SUM(Voti[[#This Row],[Colonna6]:[Colonna22]]),ROUND(SUMPRODUCT($G$8:$W$8,Voti[[#This Row],[Colonna6]:[Colonna22]]),2),\"\"))","v":""},{"$f":"IF(Voti[[#This Row],[Punteggio]]<>\"\",HLOOKUP(Voti[[#This Row],[Punteggio]],GradeTable,2),\"\")","v":""},{"$f":"IF(Voti[[#This Row],[Punteggio]]<>\"\",HLOOKUP(Voti[[#This Row],[Punteggio]],GradeTable,3),\"\")","v":""}]
[{"$nulls":3},{"$f":"(IF(SUM(Voti[[#This Row],[Colonna6]:[Colonna22]]),ROUND(SUMPRODUCT($G$8:$W$8,Voti[[#This Row],[Colonna6]:[Colonna22]]),2),\"\"))","v":""},{"$f":"IF(Voti[[#This Row],[Punteggio]]<>\"\",HLOOKUP(Voti[[#This Row],[Punteggio]],GradeTable,2),\"\")","v":""},{"$f":"IF(Voti[[#This Row],[Punteggio]]<>\"\",HLOOKUP(Voti[[#This Row],[Punteggio]],GradeTable,3),\"\")","v":""}]
[{"$nulls":3},{"$f":"(IF(SUM(Voti[[#This Row],[Colonna6]:[Colonna22]]),ROUND(SUMPRODUCT($G$8:$W$8,Voti[[#This Row],[Colonna6]:[Colonna22]]),2),\"\"))","v":""},{"$f":"IF(Voti[[#This Row],[Punteggio]]<>\"\",HLOOKUP(Voti[[#This Row],[Punteggio]],GradeTable,2),\"\")","v":""},{"$f":"IF(Voti[[#This Row],[Punteggio]]<>\"\",HLOOKUP(Voti[[#This Row],[Punteggio]],GradeTable,3),\"\")","v":""}]
[{"$nulls":3},{"$f":"(IF(SUM(Voti[[#This Row],[Colonna6]:[Colonna22]]),ROUND(SUMPRODUCT($G$8:$W$8,Voti[[#This Row],[Colonna6]:[Colonna22]]),2),\"\"))","v":""},{"$f":"IF(Voti[[#This Row],[Punteggio]]<>\"\",HLOOKUP(Voti[[#This Row],[Punteggio]],GradeTable,2),\"\")","v":""},{"$f":"IF(Voti[[#This Row],[Punteggio]]<>\"\",HLOOKUP(Voti[[#This Row],[Punteggio]],GradeTable,3),\"\")","v":""}]
[{"$nulls":3},{"$f":"(IF(SUM(Voti[[#This Row],[Colonna6]:[Colonna22]]),ROUND(SUMPRODUCT($G$8:$W$8,Voti[[#This Row],[Colonna6]:[Colonna22]]),2),\"\"))","v":""},{"$f":"IF(Voti[[#This Row],[Punteggio]]<>\"\",HLOOKUP(Voti[[#This Row],[Punteggio]],GradeTable,2),\"\")","v":""},{"$f":"IF(Voti[[#This Row],[Punteggio]]<>\"\",HLOOKUP(Voti[[#This Row],[Punteggio]],GradeTable,3),\"\")","v":""}]
[]
[null,"Riepilogo della classe",null,"Punteggio","Voto in lettere","GPA","","","","","","","","","","",""]
[null," Media",null,{"$f":"IFERROR(AVERAGE(Voti[[#All],[Punteggio]]),0)","v":{"v":0,"d":"0.0%"}},{"$f":"IFERROR(HLOOKUP(D18,GradeTable,2),\"\")","v":"F"},{"$f":"IFERROR(AVERAGE(Voti[[#All],[GPA]]),0)","v":0},"","","","","","","","","","","","","","","","",""]
[null," Punteggio più alto",null,{"$f":"IFERROR(MAX(Voti[[#All],[Punteggio]]),0)","v":{"v":0,"d":"0.0%"}},{"$f":"IFERROR(HLOOKUP(D19,GradeTable,2),\"\")","v":"F"},{"$f":"IFERROR(MAX(Voti[[#All],[GPA]]),0)","v":0},"","","","","","","","","","","","","","","","",""]
[null," Punteggio più basso",null,{"$f":"IFERROR(MIN(Voti[[#All],[Punteggio]]),0)","v":{"v":0,"d":"0.0%"}},{"$f":"IFERROR(HLOOKUP(D20,GradeTable,2),\"\")","v":"F"},{"$f":"IFERROR(MIN(Voti[[#All],[GPA]]),0)","v":0},"","","","","","","","","","","","","","","","",""]